bitfinex/quotes_BTCUSD_20220101
["timestamp","ask_amount","ask_price","bid_price","bid_amount"]
[1641008451908,0.5535,46858.0,46849.0,0.053362]
[1641008452108,0.57509237,46858.0,46850.0,0.00119089]
[1641008452309,0.57509237,46858.0,46850.0,0.05455289]
[1641008453008,0.04242367,46858.0,46850.0,0.05455289]
[1641008453207,0.04242367,46858.0,46850.0,0.00119089]
[1641008453840,0.20816928,46859.0,46850.0,0.00119089]
[1641008454042,0.25816928,46859.0,46850.0,0.00119089]
[1641008457296,0.15480528,46859.0,46850.0,0.00119089]
[1641008457499,0.15480528,46859.0,46850.0,0.20384957]
[1641008458897,0.15480528,46859.0,46852.0,0.053359]
[1641008459996,0.15480528,46859.0,46853.0,0.23656232]
[1641008460198,0.15480528,46859.0,46853.0,0.49038038]
[1641008460400,0.15480528,46859.0,46853.0,0.25438931]
[1641008460602,0.15480528,46859.0,46858.0,0.1420953]
[1641008460799,0.15480528,46859.0,46850.0,0.00119089]
[1641008461752,0.15480528,46859.0,46850.0,0.05455289]
[1641008461948,0.15480528,46859.0,46855.0,0.1420953]
[1641008462149,0.15480528,46859.0,46858.0,0.1420953]
[1641008462450,0.49182228,46859.0,46858.0,0.1420953]
[1641008464050,0.49182228,46859.0,46850.0,0.00119089]
[1641008464252,0.17581606,46859.0,46850.0,0.00119089]
[1641008464455,0.22918106,46859.0,46850.0,0.00119089]
[1641008464653,0.17581606,46859.0,46852.0,0.00959036]
[1641008465109,0.17604626,46859.0,46852.0,0.00959036]
[1641008465511,0.053367,46856.0,46852.0,0.00959036]
[1641008466212,0.053367,46856.0,46850.0,0.00119089]
[1641008470053,0.053365,46858.0,46850.0,0.00119089]
[1641008471953,0.05191566,46858.0,46850.0,0.00119089]
[1641008474396,0.10191566,46858.0,46850.0,0.00119089]
[1641008474597,0.053369,46854.0,46850.0,0.00119089]
[1641008475596,0.05,46858.0,46850.0,0.00119089]
[1641008475796,0.053369,46854.0,46850.0,0.00119089]
[1641008476250,0.05,46858.0,46850.0,0.00119089]
[1641008477046,0.15480528,46859.0,46850.0,0.00119089]
[1641008477247,0.053366,46857.0,46850.0,0.00119089]
[1641008482504,0.053366,46857.0,46851.0,0.00119601]
[1641008486760,0.053365,46858.0,46851.0,0.00119601]
[1641008487408,0.15480528,46859.0,46851.0,0.00119601]
[1641008487606,0.20480528,46859.0,46851.0,0.00119601]
[1641008488308,0.15480528,46859.0,46851.0,0.00119601]
[1641008489307,0.053366,46856.0,46851.0,0.00119601]
[1641008490909,0.053364,46858.0,46851.0,0.00119601]
[1641008498310,2.38330997,46858.0,46851.0,0.00119601]
[1641008498555,0.053367,46856.0,46851.0,0.00119601]
[1641008498754,0.15480528,46859.0,46851.0,0.00119601]
[1641008498956,0.20480528,46859.0,46851.0,0.00119601]
[1641008499355,0.02017592,46858.0,46851.0,0.00119601]
[1641008499956,0.07354092,46858.0,46851.0,0.00119601]
[1641008500359,0.053365,46858.0,46851.0,0.00119601]
[1641008500959,0.20480528,46859.0,46851.0,0.00119601]
[1641008502164,0.15480528,46859.0,46851.0,0.00119601]
[1641008503322,0.053366,46857.0,46851.0,0.00119601]
[1641008504422,0.15480528,46859.0,46851.0,0.00119601]
[1641008504825,0.15480528,46859.0,46852.0,0.44149125]
[1641008506254,0.15480528,46859.0,46852.0,0.46038288]
[1641008506652,0.15480528,46859.0,46852.0,0.44149125]
[1641008507148,0.15480528,46859.0,46852.0,0.46256113]
[1641008507357,0.798163,46877.0,46869.0,0.5517]
[1641008507358,0.0005,46870.0,46869.0,0.5517]
[1641008507549,0.00044232,46873.0,46872.0,0.1749866]
[1641008507951,0.00044232,46873.0,46872.0,0.44126746]
[1641008508150,0.00044232,46873.0,46872.0,0.87828446]
[1641008508350,0.00044232,46873.0,46872.0,0.61319913]
[1641008508748,0.00905232,46873.0,46872.0,0.61319913]
[1641008509350,0.00905232,46873.0,46872.0,0.51319913]
[1641008509798,0.00905232,46873.0,46872.0,0.53241785]
[1641008510003,0.00905232,46873.0,46872.0,0.19540085]
[1641008510202,0.00905232,46873.0,46872.0,0.21726389]
[1641008510400,0.00905232,46873.0,46872.0,0.19804517]
[1641008511503,0.00905232,46873.0,46872.0,0.17618213]
[1641008512103,0.00911892,46873.0,46872.0,0.17618213]
[1641008515052,0.00911892,46873.0,46872.0,0.51319913]
[1641008515251,0.00911892,46873.0,46872.0,0.74821985]
[1641008515850,0.00911892,46873.0,46872.0,0.41120285]
[1641008516052,0.00911892,46873.0,46872.0,0.17618213]
[1641008516252,0.00911892,46873.0,46872.0,0.19649903]
[1641008517527,0.00911892,46873.0,46872.0,0.17618213]
[1641008519121,0.00911892,46873.0,46872.0,0.51319913]
[1641008519923,0.00911892,46873.0,46872.0,0.74714079]
[1641008520121,0.00911892,46873.0,46872.0,0.51319913]
[1641008520326,0.00911892,46873.0,46872.0,0.19673968]
[1641008521374,0.00911892,46873.0,46872.0,0.17618213]
[1641008524075,0.00911892,46873.0,46872.0,0.51319913]
[1641008524477,0.00911892,46873.0,46872.0,0.17618213]
[1641008529656,0.00911892,46873.0,46872.0,0.51319913]
[1641008530256,0.00911892,46873.0,46872.0,0.53264525]
[1641008531357,0.00911892,46873.0,46872.0,0.55391394]
[1641008531556,0.00911892,46873.0,46872.0,0.53446782]
[1641008531957,0.00911892,46873.0,46872.0,0.43446782]
[1641008532405,0.00911892,46873.0,46872.0,0.43493598]
[1641008532604,0.00911892,46873.0,46872.0,0.09791898]
[1641008533005,0.00911892,46873.0,46872.0,0.24001428]
[1641008533607,0.00911892,46873.0,46872.0,0.21827743]
[1641008534905,0.00911892,46873.0,46872.0,0.55529443]
[1641008535108,0.00911892,46873.0,46872.0,0.07618213]
[1641008535708,0.00911892,46873.0,46872.0,0.41570913]
[1641008536762,0.00911892,46873.0,46872.0,0.07869213]
[1641008537361,0.00911892,46873.0,46872.0,0.09991378]
[1641008537563,0.00911892,46873.0,46872.0,0.43693078]
[1641008537965,0.00911892,46873.0,46872.0,0.67138985]
[1641008538367,0.00911892,46873.0,46872.0,0.69271874]
[1641008538564,0.00911892,46873.0,46872.0,0.67149709]
[1641008538965,0.00911892,46873.0,46872.0,0.10002102]
[1641008539365,0.00911892,46873.0,46872.0,0.12010402]
[1641008539566,0.00911892,46873.0,46872.0,0.09877513]
[1641008541023,0.00911892,46873.0,46872.0,0.07869213]
[1641008543757,0.00911892,46873.0,46872.0,0.41570913]
[1641008543957,0.00911892,46873.0,46872.0,0.64387877]
[1641008544157,0.00911892,46873.0,46872.0,0.41570913]
[1641008544558,0.00911892,46873.0,46872.0,0.64320785]
[1641008544760,0.00911892,46873.0,46872.0,0.07869213]
[1641008544961,0.00911892,46873.0,46872.0,0.22078743]
[1641008545958,0.00911892,46873.0,46872.0,0.23990368]
[1641008546861,0.00911892,46873.0,46872.0,0.07869213]
[1641008552366,0.00911892,46873.0,46872.0,0.41570913]
[1641008552766,0.00911892,46873.0,46872.0,0.55780443]
[1641008553664,0.00911892,46873.0,46872.0,0.57661929]
[1641008554476,0.00911892,46873.0,46872.0,0.59750624]
[1641008554827,0.00911892,46873.0,46872.0,0.57869138]
[1641008555528,0.00911892,46873.0,46872.0,0.60051797]
[1641008555728,0.00911892,46873.0,46872.0,0.57963102]
[1641008556532,0.00911892,46873.0,46872.0,0.49846081]
[1641008556730,0.00911892,46873.0,46872.0,0.47663422]
[1641008557129,0.00911892,46873.0,46872.0,0.33453892]
[1641008557532,0.00911892,46873.0,46872.0,0.35282205]
[1641008557831,0.00911892,46873.0,46872.0,0.33399226]
[1641008558560,0.00911892,46873.0,46872.0,0.35488415]
[1641008558763,0.00911892,46873.0,46872.0,0.33660102]
[1641008559562,0.00911892,46873.0,46872.0,0.35705578]
[1641008560266,0.00911892,46873.0,46872.0,0.54474064]
[1641008560665,0.00911892,46873.0,46872.0,1.31531715]
[1641008561769,0.0005,46876.0,46874.0,0.69461349]
[1641008561967,0.00718625,46883.0,46875.0,1.446949]
[1641008562166,0.00718625,46883.0,46881.0,0.00124413]
[1641008562411,0.00718625,46883.0,46882.0,0.336949]
[1641008562810,0.01579625,46883.0,46882.0,0.58247886]
[1641008563014,0.01579625,46883.0,46882.0,0.89643034]
[1641008563214,0.01579625,46883.0,46882.0,1.19703195]
[1641008563615,0.01579625,46883.0,46882.0,0.93640247]
[1641008563816,0.01579625,46883.0,46882.0,0.95694816]
[1641008564017,0.01579625,46883.0,46882.0,0.94688456]
[1641008564617,0.01579625,46883.0,46882.0,0.96616661]
[1641008564815,0.01579625,46883.0,46882.0,1.08771622]
[1641008565616,0.00871,46883.0,46882.0,1.10884812]
[1641008565815,0.00871,46883.0,46882.0,1.08956607]
[1641008566663,0.00871,46883.0,46882.0,1.11115277]
[1641008566863,0.00871,46883.0,46882.0,1.09002087]
[1641008567665,0.00871,46883.0,46882.0,1.110733]
[1641008567868,0.00871,46883.0,46882.0,1.0891463]
[1641008568067,0.00871,46883.0,46882.0,0.7521973]
[1641008568267,0.00871,46883.0,46882.0,0.71158474]
[1641008568466,0.00871,46883.0,46882.0,0.32131374]
[1641008568665,0.00871,46883.0,46882.0,0.34136254]
[1641008568865,0.00871,46883.0,46882.0,0.32065041]
[1641008569672,0.00871,46883.0,46882.0,0.34129065]
[1641008569921,0.00871,46883.0,46882.0,0.32124185]
[1641008570829,0.00871,46883.0,46882.0,0.34133935]
[1641008571022,0.00871,46883.0,46882.0,0.32069911]
[1641008571624,0.00871,46883.0,46882.0,0.34191873]
[1641008571824,0.00871,46883.0,46882.0,0.32182123]
[1641008572523,0.00871,46883.0,46882.0,0.29682123]
[1641008572724,0.00871,46883.0,46882.0,0.31750183]
[1641008573023,0.0001,46883.0,46882.0,0.43837751]
[1641008573226,0.0001,46883.0,46882.0,0.77532651]
[1641008573659,0.0001,46883.0,46882.0,0.79706188]
[1641008573863,0.0001,46883.0,46882.0,1.02403229]
[1641008574063,0.00871,46883.0,46882.0,1.02403229]
[1641008574760,0.00871,46883.0,46882.0,1.04479568]
[1641008574964,0.00871,46883.0,46882.0,1.00237971]
[1641008575764,0.00871,46883.0,46882.0,1.02218784]
[1641008575962,0.00871,46883.0,46882.0,0.8612414]
[1641008576763,0.00871,46883.0,46882.0,0.65325484]
[1641008576962,0.00871,46883.0,46882.0,0.86203882]
[1641008577165,0.00871,46883.0,46882.0,0.62844671]
[1641008577416,0.00871,46883.0,46882.0,0.29149771]
[1641008577618,0.00871,46883.0,46882.0,0.01898385]
[1641008577815,0.00871,46883.0,46882.0,0.0205745]
[1641008578315,0.345659,46883.0,46882.0,0.0205745]
[1641008578515,0.6705575,46883.0,46882.0,0.0205745]
[1641008578717,0.95410061,46883.0,46882.0,0.0205745]
[1641008578918,1.00410061,46883.0,46873.0,0.52353763]
[1641008579119,0.66715161,46883.0,46874.0,0.00125421]
[1641008580221,0.72048861,46883.0,46874.0,0.00244447]
[1641008580618,0.66715161,46883.0,46874.0,0.00244447]
[1641008581465,0.053339,46881.0,46874.0,0.00244447]
[1641008581664,0.23434567,46880.0,46874.0,0.00244447]
[1641008582769,0.38768567,46880.0,46874.0,0.00244447]
[1641008582968,0.33434567,46880.0,46874.0,0.00244447]
[1641008583366,6.427e-05,46879.0,46874.0,0.00244447]
[1641008583567,6.427e-05,46879.0,46875.0,0.336949]
[1641008583766,6.427e-05,46879.0,46874.0,0.00244447]
[1641008583967,6.427e-05,46879.0,46875.0,0.336949]
[1641008584837,6.427e-05,46879.0,46875.0,0.41163134]
[1641008585835,6.427e-05,46879.0,46875.0,0.43295398]
[1641008586039,6.427e-05,46879.0,46875.0,0.41160564]
[1641008587334,6.427e-05,46879.0,46875.0,0.43305002]
[1641008587534,6.427e-05,46879.0,46875.0,0.41172738]
[1641008587736,6.427e-05,46879.0,46875.0,0.43348511]
[1641008587938,6.427e-05,46879.0,46875.0,0.41204073]
[1641008588767,6.427e-05,46879.0,46875.0,0.4339115]
[1641008588967,6.427e-05,46879.0,46875.0,0.41215377]
[1641008589769,6.427e-05,46879.0,46875.0,0.09636248]
[1641008589969,6.427e-05,46879.0,46875.0,0.07449171]
[1641008590170,6.427e-05,46879.0,46875.0,0.67180397]
[1641008590571,6.427e-05,46879.0,46875.0,0.07449171]
[1641008590969,6.427e-05,46879.0,46875.0,0.053334]
[1641008591368,6.427e-05,46879.0,46876.0,0.336949]
[1641008591568,6.427e-05,46879.0,46875.0,0.053334]
[1641008591769,6.427e-05,46879.0,46874.0,0.64310106]
[1641008591969,6.427e-05,46879.0,46874.0,0.62127099]
[1641008592172,6.427e-05,46879.0,46875.0,0.336949]
[1641008592816,6.427e-05,46879.0,46875.0,0.3572987]
[1641008593916,6.427e-05,46879.0,46876.0,0.053332]
[1641008594116,6.427e-05,46879.0,46877.0,0.336949]
[1641008594917,6.427e-05,46879.0,46877.0,0.35589762]
[1641008595117,6.427e-05,46879.0,46878.0,0.00128657]
[1641008595317,6.427e-05,46879.0,46878.0,1.17823557]
[1641008595517,6.427e-05,46879.0,46878.0,1.27823557]
[1641008595718,6.427e-05,46879.0,46878.0,0.43823557]
[1641008596377,6.427e-05,46879.0,46878.0,0.83823557]
[1641008596874,6.427e-05,46879.0,46878.0,0.85706151]
[1641008597075,6.427e-05,46879.0,46878.0,0.59915681]
[1641008597275,6.427e-05,46879.0,46878.0,0.86548741]
[1641008598578,6.427e-05,46879.0,46878.0,0.88496149]
[1641008598775,6.427e-05,46879.0,46878.0,0.88636024]
[1641008598976,6.427e-05,46879.0,46878.0,0.86688616]
[1641008599811,6.427e-05,46879.0,46878.0,0.88842458]
[1641008600815,6.427e-05,46879.0,46878.0,0.90867009]
[1641008601020,6.427e-05,46879.0,46878.0,0.49928981]
[1641008601418,6.427e-05,46879.0,46878.0,0.16234081]
[1641008602016,6.427e-05,46879.0,46878.0,0.18346886]
[1641008602217,6.427e-05,46879.0,46878.0,0.16322335]
[1641008604178,6.427e-05,46879.0,46878.0,0.1420953]
[1641008604375,6.427e-05,46879.0,46878.0,0.4790443]
[1641008606077,6.427e-05,46879.0,46878.0,0.49869949]
[1641008606979,6.427e-05,46879.0,46878.0,0.52002058]
[1641008607179,6.427e-05,46879.0,46878.0,0.50036539]
[1641008607427,6.427e-05,46879.0,46878.0,0.72901182]
[1641008608125,6.427e-05,46879.0,46878.0,3.51794145]
[1641008608326,6.427e-05,46879.0,46878.0,3.97793879]
[1641008608525,6.427e-05,46879.0,46878.0,3.9990784]
[1641008608727,6.427e-05,46879.0,46878.0,3.97775731]
[1641008608928,6.427e-05,46879.0,46878.0,3.99937441]
[1641008609125,6.427e-05,46879.0,46878.0,3.9782348]
[1641008609527,6.427e-05,46879.0,46878.0,3.74958837]
[1641008609730,6.427e-05,46879.0,46878.0,0.5006614]
[1641008610030,6.427e-05,46879.0,46878.0,0.4983802]
[1641008610230,6.427e-05,46879.0,46878.0,0.0193359]
[1641008611277,6.427e-05,46879.0,46878.0,0.02089028]
[1641008611676,6.427e-05,46879.0,46878.0,0.00155438]
[1641008614829,6.427e-05,46879.0,46878.0,0.33850338]
[1641008616031,6.427e-05,46879.0,46878.0,0.3591002]
[1641008617034,6.427e-05,46879.0,46878.0,0.88146762]
[1641008617337,0.0004,46887.0,46883.0,0.09270948]
[1641008617531,0.0004,46893.0,46892.0,1.04112387]
[1641008617733,0.0004,46893.0,46892.0,1.44203466]
[1641008617932,0.00901,46893.0,46892.0,1.54203466]
[1641008618131,0.01762,46893.0,46892.0,0.72778648]
[1641008618332,0.01762,46893.0,46892.0,0.44807287]
[1641008618601,0.01762,46893.0,46892.0,0.70631955]
[1641008618794,0.01762,46893.0,46892.0,1.43807287]
[1641008618795,0.01262,46893.0,46892.0,1.43807287]
[1641008619196,0.01262,46893.0,46892.0,0.44807287]
[1641008619594,0.01262,46893.0,46892.0,0.74547905]
[1641008619995,0.01262,46893.0,46892.0,0.76691524]
[1641008620193,0.01262,46893.0,46892.0,0.74631486]
[1641008621097,0.01262,46893.0,46892.0,0.76599804]
[1641008621994,0.01262,46893.0,46892.0,0.72487867]
[1641008622336,0.01262,46893.0,46892.0,0.36783163]
[1641008622537,0.01262,46893.0,46892.0,0.03088263]
[1641008622836,0.00762,46893.0,46892.0,0.03088263]
[1641008623035,0.00762,46893.0,46892.0,0.05201992]
[1641008623238,0.00762,46893.0,46892.0,0.03226116]
[1641008624836,0.00762,46893.0,46892.0,0.01112387]
[1641008625836,0.00762,46893.0,46892.0,0.34807287]
[1641008627070,0.00762,46893.0,46892.0,0.3691364]
[1641008628070,0.00762,46893.0,46892.0,0.39107241]
[1641008628272,0.00762,46893.0,46892.0,0.37000888]
[1641008629070,0.00762,46893.0,46892.0,0.39156642]
[1641008629269,0.00762,46893.0,46892.0,0.36963041]
[1641008629934,0.00762,46893.0,46892.0,0.51172571]
[1641008630134,0.00762,46893.0,46892.0,0.53030274]
[1641008630334,0.00762,46893.0,46892.0,0.5087452]
[1641008631035,0.00762,46893.0,46892.0,0.52825569]
[1641008631236,0.00762,46893.0,46892.0,0.50967866]
[1641008632140,0.00834367,46893.0,46892.0,0.53118023]
[1641008632336,0.00834367,46893.0,46892.0,0.51166974]
[1641008633137,0.00834367,46893.0,46892.0,0.53243916]
[1641008633337,0.00834367,46893.0,46892.0,0.51093759]
[1641008634167,0.00834367,46893.0,46892.0,0.53083878]
[1641008634367,0.00834367,46893.0,46892.0,0.73463234]
[1641008634968,0.00834367,46893.0,46892.0,0.51006936]
[1641008635167,0.00834367,46893.0,46892.0,0.53134481]
[1641008635369,0.00834367,46893.0,46892.0,0.51144362]
[1641008636168,0.00834367,46893.0,46892.0,0.53140305]
[1641008636370,0.00834367,46893.0,46892.0,0.5101276]
[1641008636970,0.00834367,46893.0,46892.0,0.51167111]
[1641008637170,0.00834367,46893.0,46892.0,0.53348504]
[1641008637419,0.00834367,46893.0,46892.0,0.51352561]
[1641008638318,0.00834367,46893.0,46892.0,0.51280288]
[1641008639120,0.00834367,46893.0,46892.0,0.53397541]
[1641008639320,0.00834367,46893.0,46892.0,0.51288421]
[1641008640024,0.00834367,46893.0,46892.0,0.17593521]
[1641008640419,0.00834367,46893.0,46892.0,0.51288421]
[1641008640820,0.00834367,46893.0,46892.0,0.53225619]
[1641008641082,0.00834367,46893.0,46892.0,0.51108366]
[1641008641877,0.00834367,46893.0,46892.0,0.52974983]
[1641008642077,0.00834367,46893.0,46892.0,0.51037785]
[1641008642480,0.00834367,46893.0,46892.0,0.73597741]
[1641008642882,0.00834367,46893.0,46892.0,0.52946513]
[1641008643082,0.00834367,46893.0,46892.0,0.51079896]
[1641008643282,0.00834367,46893.0,46892.0,0.52947964]
[1641008643482,0.00834367,46893.0,46892.0,0.51039236]
[1641008644282,0.00834367,46893.0,46892.0,0.52915457]
[1641008644482,0.00834367,46893.0,46892.0,0.51047389]
[1641008645334,0.00841492,46893.0,46892.0,0.51249383]
[1641008645532,0.00841492,46893.0,46892.0,0.75068802]
[1641008646134,0.00841492,46893.0,46892.0,0.7714352]
[1641008646333,0.00841492,46893.0,46892.0,0.51245886]
[1641008647232,0.00841492,46893.0,46892.0,0.5325865]
[1641008648034,0.00841492,46893.0,46892.0,0.49171168]
[1641008648236,0.00841492,46893.0,46892.0,0.51169115]
[1641008648436,0.00841492,46893.0,46892.0,0.50056728]
[1641008649122,0.00841492,46893.0,46892.0,0.48058781]
[1641008649317,0.00841492,46893.0,46892.0,0.50186585]
[1641008650319,0.00841492,46893.0,46892.0,0.52098866]
[1641008650521,0.00841492,46893.0,46892.0,0.49971062]
[1641008651320,0.00841492,46893.0,46892.0,0.51998939]
[1641008651519,0.00841492,46893.0,46892.0,0.50086658]
[1641008652327,0.00841492,46893.0,46892.0,0.51941544]
[1641008652528,0.00841492,46893.0,46892.0,0.49913667]
[1641008653229,0.00841492,46893.0,46892.0,0.51918824]
[1641008653429,0.00841492,46893.0,46892.0,0.50063938]
[1641008654331,0.00841492,46893.0,46892.0,0.52034267]
[1641008654532,0.00841492,46893.0,46892.0,0.5002911]
[1641008655336,0.00841492,46893.0,46892.0,0.51848848]
[1641008655536,0.00841492,46893.0,46892.0,0.49878519]
[1641008656385,0.00841492,46893.0,46892.0,0.51889812]
[1641008656583,0.00841492,46893.0,46892.0,0.50070074]
[1641008657384,0.00841492,46893.0,46892.0,0.52059051]
[1641008657583,0.00841492,46893.0,46892.0,0.50047758]
[1641008659183,0.00841492,46893.0,46892.0,0.49917811]
[1641008659484,0.00841492,46893.0,46892.0,0.5178792]
[1641008659684,0.00841492,46893.0,46892.0,0.4992889]
[1641008660329,0.00841492,46893.0,46892.0,0.51980382]
[1641008660530,0.00841492,46893.0,46892.0,0.02205843]
[1641008660737,0.2666616,46893.0,46892.0,0.02205843]
[1641008660933,0.3166616,46893.0,46886.0,0.00954898]
[1641008661132,0.09999999,46889.0,46886.0,0.00954898]
[1641008661332,0.14999999,46889.0,46887.0,0.01942303]
[1641008661533,0.36411926,46888.0,46887.0,0.01942303]
[1641008662131,0.75440526,46888.0,46887.0,0.01942303]
[1641008662531,0.75440526,46888.0,46881.0,0.02195104]
[1641008662838,0.41597753,46885.0,46881.0,0.03150015]
[1641008663029,0.23792048,46884.0,46881.0,0.03150015]
[1641008663866,0.053336,46883.0,46881.0,0.03150015]
[1641008664267,0.053336,46883.0,46877.0,0.61583071]
[1641008664468,0.053336,46883.0,46877.0,0.63478588]
[1641008664665,0.053336,46883.0,46877.0,0.61626743]
[1641008665466,0.23792048,46884.0,46877.0,0.03924592]
[1641008665467,0.29125548,46884.0,46877.0,0.03924592]
[1641008665667,0.29125548,46884.0,46877.0,0.02029075]
[1641008666667,0.29125548,46884.0,46876.0,0.02081439]
[1641008667321,0.29125548,46884.0,46878.0,0.59731226]
[1641008668323,0.29125548,46884.0,46878.0,0.61545585]
[1641008669525,0.29125548,46884.0,46878.0,0.63591198]
[1641008670325,0.29125548,46884.0,46878.0,0.59731226]
[1641008670625,0.29125548,46884.0,46878.0,0.6186342]
[1641008671466,0.29125548,46884.0,46878.0,0.63881765]
[1641008671668,0.29125548,46884.0,46878.0,0.61749571]
[1641008672167,0.29125548,46884.0,46878.0,0.02018345]
[1641008672368,0.29125548,46884.0,46878.0,0.03829624]
[1641008672773,0.29125548,46884.0,46873.0,0.3137899]
[1641008673072,0.23792048,46884.0,46878.0,0.00137542]
[1641008674271,0.29125548,46884.0,46878.0,0.00137542]
[1641008674827,0.28450072,46880.0,46878.0,0.00137542]
[1641008676630,0.33784072,46880.0,46878.0,0.00137542]
[1641008677035,0.23259336,46879.0,46878.0,0.00137542]
[1641008677232,0.28450072,46880.0,46878.0,0.00137542]
[1641008677834,0.29531298,46880.0,46878.0,0.00137542]
[1641008678671,0.28450072,46880.0,46878.0,0.00137542]
[1641008680872,0.23178412,46879.0,46878.0,0.00137542]
[1641008681073,0.23297164,46879.0,46878.0,0.00137542]
[1641008681272,0.28450072,46880.0,46878.0,0.00137542]
[1641008681874,0.24000334,46879.0,46878.0,0.00137542]
[1641008682635,0.28450072,46880.0,46878.0,0.33832442]
[1641008682835,0.2944796,46880.0,46878.0,0.00137542]
[1641008683035,0.29422293,46880.0,46878.0,0.00137542]
[1641008683633,0.28424405,46880.0,46879.0,0.696949]
[1641008683833,0.28424405,46880.0,46878.0,0.00137542]
[1641008684037,0.27924405,46880.0,46878.0,0.00137542]
[1641008685235,0.053336,46883.0,46878.0,0.00137542]
[1641008685435,0.16269644,46885.0,46878.0,0.00137542]
[1641008685734,0.00921449,46883.0,46878.0,0.00137542]
[1641008686578,0.30226963,46882.0,46878.0,0.00137542]
[1641008686776,0.35560663,46882.0,46878.0,0.00137542]
[1641008687576,0.35566795,46882.0,46878.0,0.00137542]
[1641008687976,0.36516328,46882.0,46878.0,0.00137542]
[1641008688179,0.23444276,46881.0,46878.0,0.00137542]
[1641008688377,0.28778076,46881.0,46878.0,0.00137542]
[1641008690021,0.33778076,46881.0,46878.0,0.00137542]
[1641008690222,0.103338,46881.0,46878.0,0.00137542]
[1641008691423,0.053339,46880.0,46878.0,0.00137542]
[1641008693227,0.23612123,46879.0,46878.0,0.00137542]
[1641008693425,0.28612123,46879.0,46878.0,0.00137542]
[1641008693668,0.33612123,46879.0,46878.0,0.00137542]
[1641008694267,0.33612123,46879.0,46878.0,0.00187542]
[1641008694468,0.33612123,46879.0,46878.0,0.00137542]
[1641008694868,0.3461732,46879.0,46878.0,0.00137542]
[1641008695867,0.34572315,46879.0,46878.0,0.00137542]
[1641008696668,0.10960192,46879.0,46878.0,0.00137542]
[1641008696868,0.11998152,46879.0,46878.0,0.00137542]
[1641008697072,0.01998152,46879.0,46878.0,0.00137542]
[1641008697928,0.153339,46880.0,46878.0,0.00137542]
[1641008700132,0.053339,46880.0,46878.0,0.00137542]
[1641008700532,0.0639173,46882.0,46878.0,0.00137542]
[1641008700932,0.01008671,46882.0,46878.0,0.00137542]
[1641008702888,6.132e-05,46882.0,46878.0,0.00137542]
[1641008703087,0.053336,46883.0,46878.0,0.00137542]
[1641008703687,0.053336,46883.0,46880.0,0.30558443]
[1641008704289,0.005,46886.0,46881.0,0.16722722]
[1641008704488,0.01015301,46889.0,46881.0,0.17044314]
[1641008704689,0.01015301,46889.0,46882.0,0.33822445]
[1641008705171,0.03169892,46889.0,46882.0,0.33822445]
[1641008705371,0.03169892,46889.0,46883.0,0.2717301]
[1641008705572,0.060945,46893.0,46884.0,0.25303258]
[1641008705971,0.00762,46893.0,46884.0,0.25303258]
[1641008706871,0.053326,46892.0,46884.0,0.25303258]
[1641008708172,6.67e-05,46889.0,46884.0,0.25303258]
[1641008709186,6.67e-05,46889.0,46885.0,0.00196597]
[1641008709584,6.67e-05,46889.0,46887.0,0.00742704]
[1641008709785,6.67e-05,46889.0,46887.0,0.01485408]
[1641008710489,6.67e-05,46889.0,46888.0,0.26766334]
[1641008712090,6.67e-05,46889.0,46888.0,0.58778774]
[1641008712319,6.67e-05,46889.0,46888.0,0.58694688]
[1641008712723,6.67e-05,46889.0,46888.0,0.60862733]
[1641008712921,6.67e-05,46889.0,46888.0,0.94557633]
[1641008713920,6.67e-05,46889.0,46888.0,0.96751592]
[1641008714120,6.67e-05,46889.0,46888.0,0.99915347]
[1641008714324,0.0086767,46889.0,46888.0,0.99915347]
[1641008714722,0.0086767,46889.0,46888.0,1.02246115]
[1641008714921,0.0086767,46889.0,46888.0,1.1079486]
[1641008715123,0.0086767,46889.0,46888.0,1.11537564]
[1641008715823,0.0086767,46889.0,46888.0,1.13717436]
[1641008716077,0.0086767,46889.0,46888.0,0.88272798]
[1641008716674,0.0086767,46889.0,46888.0,1.02482328]
[1641008716973,0.0086767,46889.0,46888.0,1.25576602]
[1641008717172,0.0086767,46889.0,46888.0,1.02404037]
[1641008717672,0.0086767,46889.0,46888.0,0.92404037]
[1641008717875,0.0086767,46889.0,46888.0,0.94205887]
[1641008718075,0.0086767,46889.0,46888.0,0.86772506]
[1641008718874,0.0086767,46889.0,46888.0,0.8867261]
[1641008719074,0.0086767,46889.0,46888.0,0.8687076]
[1641008719922,0.0086767,46889.0,46888.0,0.88935464]
[1641008720122,0.0086767,46889.0,46888.0,0.8703536]
[1641008720926,0.0086767,46889.0,46888.0,0.89154165]
[1641008721125,0.0086767,46889.0,46888.0,0.87089461]
[1641008721923,0.0086767,46889.0,46888.0,0.89217257]
[1641008722128,0.0086767,46889.0,46888.0,0.87098452]
[1641008722925,0.0086767,46889.0,46888.0,0.8892832]
[1641008723130,0.0086767,46889.0,46888.0,0.86800524]
[1641008723583,0.0086767,46889.0,46888.0,0.92132324]
[1641008723978,0.0086767,46889.0,46888.0,0.94235863]
[1641008724178,0.0086767,46889.0,46888.0,0.92405995]
[1641008724979,0.0086767,46889.0,46888.0,0.9430113]
[1641008725179,0.0086767,46889.0,46888.0,0.92197591]
[1641008725880,0.0086767,46889.0,46888.0,0.94257284]
[1641008726079,0.0086767,46889.0,46888.0,0.92362149]
[1641008726480,0.0086767,46889.0,46888.0,0.88152619]
[1641008726880,0.00933006,46890.0,46889.0,0.86]
[1641008727079,0.00933006,46890.0,46889.0,1.196949]
[1641008727319,0.00933006,46890.0,46889.0,0.336949]
[1641008727521,0.00933006,46890.0,46889.0,0.35180308]
[1641008727922,0.00933006,46890.0,46889.0,0.37076514]
[1641008727923,0.01794006,46890.0,46889.0,0.37076514]
[1641008728125,0.01794006,46890.0,46889.0,0.47076514]
[1641008729526,0.01794006,46890.0,46889.0,0.39157404]
[1641008729728,0.01794006,46890.0,46889.0,0.51470728]
[1641008729926,0.01794006,46890.0,46889.0,0.5336127]
[1641008730128,0.01794006,46890.0,46889.0,0.5128038]
[1641008730932,0.01794006,46890.0,46889.0,0.53130514]
[1641008731178,0.01794006,46890.0,46889.0,0.51239972]
[1641008731378,0.01794006,46890.0,46889.0,0.51245972]
[1641008731975,0.01794006,46890.0,46889.0,0.53351338]
[1641008732175,0.01794006,46890.0,46889.0,0.51501204]
[1641008732979,0.01794006,46890.0,46889.0,0.53570147]
[1641008733177,0.01794006,46890.0,46889.0,0.51464781]
[1641008733977,0.01794006,46890.0,46889.0,0.53472621]
[1641008734177,0.01794006,46890.0,46889.0,0.51403678]
[1641008735034,0.01794006,46890.0,46889.0,0.53395146]
[1641008735233,0.01794006,46890.0,46889.0,0.51387306]
[1641008735934,0.01794006,46890.0,46889.0,0.53473417]
[1641008736136,0.01794006,46890.0,46889.0,0.51481949]
[1641008736936,0.01794006,46890.0,46889.0,0.53455451]
[1641008737134,0.01794006,46890.0,46889.0,0.5136934]
[1641008737735,0.00626021,46890.0,46889.0,1.2036934]
[1641008737935,0.00626021,46890.0,46889.0,0.5670094]
[1641008738135,0.00626021,46890.0,46889.0,0.56802659]
[1641008738334,0.00626021,46890.0,46889.0,0.42593129]
[1641008738978,0.00626021,46890.0,46889.0,0.44732745]